lending/lending_fUSD_20240605
["ID","MTS","AMOUNT","RATE_DAILY","PERIOD"]
[328620013,1717620633541,-500.0,0.00029895,4]
[328620014,1717620633551,-500.0,0.00029895,4]
[328620015,1717620633561,-500.0,0.00029895,4]
[328620016,1717620633570,-632.26,0.00029896,4]
[328620017,1717620633580,-503.42030609,0.00029896,4]
[328620018,1717620633589,-510.55963949,0.00029896,4]
[328620019,1717620633599,-583.83,0.00029896,4]
[328620020,1717620633609,-507.96339091,0.00029896,4]
[328620021,1717620633619,-500.0,0.00029896,4]
[328620022,1717620633629,-641.04,0.00029896,4]
[328620023,1717620633639,-500.0,0.00029896,4]
[328620024,1717620633649,-504.38923998,0.00029896,4]
[328620025,1717620633658,-390.44,0.00029896,4]
[328620026,1717620633668,-503.50331715,0.00029896,4]
[328620027,1717620633677,-504.64841745,0.00029896,4]
[328620028,1717620633687,-500.0,0.00029896,4]
[328620029,1717620633697,-500.0,0.00029896,4]
[328620030,1717620633706,-506.30057153,0.00029896,4]
[328620031,1717620633716,-503.4047007,0.00029896,4]
[328620032,1717620633726,-508.06160515,0.00029896,4]
[328620033,1717620633736,-500.0,0.00029896,4]
[328620034,1717620633745,-506.98404218,0.00029896,4]
[328620035,1717620633755,-504.3188237,0.00029896,4]
[328620036,1717620633764,-510.5355454,0.00029896,4]
[328620037,1717620633775,-588.91029527,0.00029896,4]
[328620038,1717620633785,-509.6999657,0.00029896,4]
[328620039,1717620633794,-500.0,0.00029896,4]
[328620040,1717620633804,-500.0,0.00029896,4]
[328620041,1717620633814,-500.0,0.00029896,4]
[328620042,1717620633824,-500.32022687,0.00029896,4]
[328620043,1717620633837,-505.62164435,0.00029896,4]
[328620044,1717620633847,-500.0,0.00029896,4]
[328620045,1717620633856,-620.09,0.00029896,4]
[328620046,1717620633866,-500.0,0.00029896,4]
[328620047,1717620633876,-404.22,0.00029896,4]
[328620048,1717620633885,-498.96951038,0.00029896,4]
[328620049,1717620633894,-507.8444182,0.00029896,4]
[328620050,1717620633904,-559.26359576,0.00029896,4]
[328620051,1717620633915,-500.0,0.00029896,4]
[328620052,1717620633926,-500.0,0.00029896,4]
[328620053,1717620633935,-500.0,0.00029896,4]
[328620054,1717620633945,-500.0,0.00029896,4]
[328620055,1717620633955,-585.98,0.00029896,4]
[328620056,1717620633965,-505.94343469,0.00029896,4]
[328620057,1717620633974,-505.15727908,0.00029896,4]
[328620058,1717620633984,-500.0,0.00029896,4]
[328620059,1717620633993,-569.33,0.00029896,4]
[328620060,1717620634003,-500.0,0.00029896,4]
[328620061,1717620634013,-500.0,0.00029896,4]
[328620062,1717620634023,-194.38,0.00029896,4]
[328620063,1717620634034,-500.0,0.00029896,4]
[328620064,1717620634044,-500.0,0.00029896,4]
[328620065,1717620634053,-500.0,0.00029896,4]
[328620066,1717620634063,-500.0,0.00029896,4]
[328620067,1717620634072,-500.0,0.00029896,4]
[328620068,1717620634082,-509.94348308,0.00029896,4]
[328620069,1717620634092,-500.0,0.00029896,4]
[328620070,1717620634102,-503.68949031,0.00029896,4]
[328620071,1717620634112,-501.04991394,0.00029896,4]
[328620072,1717620634122,-506.6859736,0.00029896,4]
[328620073,1717620634132,-506.80548999,0.00029896,4]
[328620074,1717620634142,-500.0,0.00029896,4]
[328620075,1717620634152,-500.0,0.00029896,4]
[328620076,1717620634161,-501.61009387,0.00029896,4]
[328620077,1717620634173,-504.3693751,0.00029896,4]
[328620078,1717620634183,-505.59240666,0.00029896,4]
[328620079,1717620634192,-500.0,0.00029896,4]
[328620080,1717620634202,-228.79,0.00029896,4]
[328620081,1717620634211,-500.0,0.00029896,4]
[328620082,1717620634221,-500.0,0.00029896,4]
[328620083,1717620634231,-264.25,0.00029896,4]
[328620084,1717620634240,-635.9,0.00029896,4]
[328620085,1717620634249,-500.0,0.00029896,4]
[328620086,1717620634260,-648.36,0.00029896,4]
[328620087,1717620634270,-500.0,0.00029896,4]
[328620088,1717620634279,-500.0,0.00029896,4]
[328620089,1717620634288,-321.87,0.00029896,4]
[328620090,1717620634298,-500.0,0.00029896,4]
[328620091,1717620634307,-505.7076106,0.00029896,4]
[328620092,1717620634317,-505.552671,0.00029896,4]
[328620093,1717620634327,-504.32297079,0.00029896,4]
[328620094,1717620634336,-504.79447261,0.00029896,4]
[328620095,1717620634346,-503.57667595,0.00029896,4]
[328620096,1717620634355,-505.69512396,0.00029896,4]
[328620097,1717620634365,-500.0,0.00029896,4]
[328620098,1717620634375,-195.28,0.00029896,4]
[328620099,1717620634385,-500.0,0.00029896,4]
[328620100,1717620634395,-500.0,0.00029896,4]
[328620101,1717620634405,-500.0,0.00029896,4]
[328620102,1717620634415,-507.20937628,0.00029896,4]
[328620103,1717620634425,-503.52341089,0.00029896,4]
[328620104,1717620634434,-524.7,0.00029896,4]
[328620105,1717620634443,-503.6924814,0.00029896,4]
[328620106,1717620634453,-500.0,0.00029896,4]
[328620107,1717620634462,-508.89211541,0.00029896,4]
[328620108,1717620634472,-503.46402599,0.00029896,4]
[328620109,1717620634481,-352.9,0.00029896,4]
[328620110,1717620634491,-551.39638013,0.00029896,4]
[328620111,1717620634501,-505.64714708,0.00029896,4]
[328620112,1717620634511,-506.69477963,0.00029896,4]
[328620113,1717620634523,-506.51841193,0.00029896,4]
[328620114,1717620634534,-503.66158698,0.00029896,4]
[328620115,1717620634543,-504.49484898,0.00029896,4]
[328620116,1717620634552,-500.0,0.00029896,4]
[328620117,1717620634561,-455.58278304,0.00029896,4]
[328620118,1717620634572,-502.34516121,0.00029896,4]
[328620119,1717620634582,-506.86410003,0.00029896,4]
[328620120,1717620634592,-578.1,0.00029896,4]
[328620121,1717620634601,-500.0,0.00029896,4]
[328620122,1717620634610,-509.04852371,0.00029896,4]
[328620123,1717620634620,-354.94647152,0.00029896,4]
[328620124,1717620634629,-509.0376282,0.00029896,4]
[328620125,1717620634638,-500.0,0.00029896,4]
[328620126,1717620634648,-166.96566365,0.00029896,4]
[328620127,1717620634658,-500.0,0.00029896,4]
[328620128,1717620634668,-565.77,0.00029896,4]
[328620129,1717620634677,-620.35636224,0.00029896,4]
[328620130,1717620634687,-507.38605817,0.00029896,4]
[328620131,1717620634697,-547.58077691,0.00029896,4]
[328620132,1717620634706,-509.52202728,0.00029896,4]
[328620133,1717620634716,-500.0,0.00029896,4]
[328620134,1717620634725,-621.68,0.00029896,4]
[328620135,1717620634735,-507.70674184,0.00029896,4]
[328620136,1717620634744,-500.0,0.00029896,4]
[328620137,1717620634753,-500.0,0.00029896,4]
[328620138,1717620634763,-500.0,0.00029896,4]
[328620139,1717620634774,-500.0,0.00029896,4]
[328620140,1717620634784,-489.55,0.00029896,4]
[328620141,1717620634793,-500.0,0.00029896,4]
[328620142,1717620634803,-500.0,0.00029896,4]
[328620143,1717620634813,-500.0,0.00029896,4]
[328620144,1717620634822,-500.0,0.00029896,4]
[328620145,1717620634834,-522.06,0.00029896,4]
[328620146,1717620634844,-500.0,0.00029896,4]
[328620147,1717620634853,-500.0,0.00029896,4]
[328620148,1717620634863,-504.94460921,0.00029896,4]
[328620149,1717620634872,-506.99640169,0.00029896,4]
[328620150,1717620634882,-500.0,0.00029896,4]
[328620151,1717620634892,-500.0,0.00029896,4]
[328620152,1717620634901,-500.0,0.00029896,4]
[328620153,1717620634913,-503.4952031,0.00029896,4]
[328620154,1717620634923,-500.0,0.00029896,4]
[328620155,1717620634933,-500.0,0.00029896,4]
[328620156,1717620634943,-500.0,0.00029896,4]
[328620157,1717620634952,-353.61079327,0.00029896,4]
[328620158,1717620634962,-500.0,0.00029896,4]
[328620159,1717620634972,-350.75711612,0.00029896,4]
[328620160,1717620634981,-504.64471793,0.00029896,4]
[328620161,1717620634991,-503.91837832,0.00029896,4]
[328620162,1717620635000,-500.0,0.00029896,4]
[328620163,1717620635010,-371.2,0.00029896,4]
[328620164,1717620635019,-503.14777377,0.00029896,4]
[328620165,1717620635028,-500.0,0.00029896,4]
[328620166,1717620635038,-559.96,0.00029896,4]
[328620167,1717620635048,-504.95738204,0.00029896,4]
[328620168,1717620635058,-502.12822067,0.00029896,4]
[328620169,1717620635068,-500.0,0.00029896,4]
[328620170,1717620635077,-508.52284735,0.00029896,4]
[328620171,1717620635087,-500.0,0.00029896,4]
[328620172,1717620635096,-507.72715766,0.00029896,4]
[328620173,1717620635106,-500.0,0.00029896,4]
[328620174,1717620635116,-500.0,0.00029896,4]
[328620175,1717620635125,-499.41993683,0.00029896,4]
[328620176,1717620635134,-504.80765307,0.00029896,4]
[328620177,1717620635144,-500.0,0.00029896,4]
[328620178,1717620635154,-307.44,0.00029896,4]
[328620179,1717620635163,-503.39889581,0.00029896,4]
[328620180,1717620635172,-504.00740173,0.00029896,4]
[328620181,1717620635182,-500.0,0.00029896,4]
[328620182,1717620635191,-505.31663164,0.00029896,4]
[328620183,1717620635200,-500.0,0.00029896,4]
[328620184,1717620635210,-500.0,0.00029896,4]
[328620185,1717620635219,-509.91696364,0.00029896,4]
[328620186,1717620635228,-502.89697178,0.00029896,4]
[328620187,1717620635238,-500.0,0.00029896,4]
[328620188,1717620635247,-500.0,0.00029896,4]
[328620189,1717620635256,-500.0,0.00029896,4]
[328620190,1717620635266,-500.0,0.00029896,4]
[328620191,1717620635276,-507.18703318,0.00029896,4]
[328620192,1717620635285,-500.0,0.00029896,4]
[328620193,1717620635295,-503.89515814,0.00029896,4]
[328620194,1717620635304,-500.0,0.00029896,4]
[328620195,1717620635313,-594.08,0.00029896,4]
[328620196,1717620635322,-505.0,0.00029896,4]
[328620197,1717620635331,-500.0,0.00029896,4]
[328620198,1717620635340,-516.8,0.00029896,4]
[328620199,1717620635349,-507.22485399,0.00029896,4]
[328620200,1717620635358,-504.13257786,0.00029896,4]
[328620201,1717620635367,-503.39023287,0.00029896,4]
[328620202,1717620635376,-500.0,0.00029896,4]
[328620203,1717620635385,-500.0,0.00029896,4]
[328620204,1717620635395,-500.0,0.00029896,4]
[328620205,1717620635404,-521.53628787,0.00029896,4]
[328620206,1717620635412,-572.66576964,0.00029896,4]
[328620207,1717620635422,-500.0,0.00029896,4]
[328620208,1717620635431,-500.0,0.00029896,4]
[328620209,1717620635441,-500.0,0.00029896,4]
[328620210,1717620635450,-500.0,0.00029896,4]
[328620211,1717620635459,-503.421232,0.00029896,4]
[328620212,1717620635469,-500.0,0.00029896,4]
[328620213,1717620635478,-503.44972665,0.00029896,4]
[328620214,1717620635487,-500.0,0.00029896,4]
[328620215,1717620635497,-500.0,0.00029896,4]
[328620216,1717620635507,-500.0,0.00029896,4]
[328620217,1717620635516,-173.03,0.00029896,4]
[328620218,1717620635527,-504.22224933,0.00029896,4]
[328620219,1717620635536,-500.0,0.00029896,4]
[328620220,1717620635545,-500.0,0.00029896,4]
[328620221,1717620635555,-500.0,0.00029896,4]
[328620222,1717620635565,-500.0,0.00029896,4]
[328620223,1717620635574,-500.0,0.00029896,4]
[328620224,1717620635583,-500.0,0.00029896,4]
[328620225,1717620635593,-630.14,0.00029896,4]
[328620226,1717620635603,-500.0,0.00029896,4]
[328620227,1717620635612,-500.0,0.00029896,4]
[328620228,1717620635622,-508.93742222,0.00029896,4]
[328620229,1717620635631,-500.0,0.00029896,4]
[328620230,1717620635640,-502.04439694,0.00029896,4]
[328620231,1717620635649,-500.0,0.00029896,4]
[328620232,1717620635659,-504.80583169,0.00029896,4]
[328620233,1717620635668,-507.90496928,0.00029896,4]
[328620234,1717620635677,-500.0,0.00029896,4]
[328620235,1717620635686,-500.0,0.00029896,4]
[328620236,1717620635695,-500.0,0.00029896,4]
[328620237,1717620635704,-508.08803319,0.00029896,4]
[328620238,1717620635713,-506.70748336,0.00029896,4]
[328620239,1717620635722,-500.0,0.00029896,4]
[328620240,1717620635732,-500.0,0.00029896,4]
[328620241,1717620635741,-506.83529578,0.00029896,4]
[328620242,1717620635751,-500.0,0.00029896,4]
[328620243,1717620635891,-376.68,0.00029896,4]
[328620244,1717620635904,-500.0,0.00029896,4]
[328620245,1717620635913,-507.51058521,0.00029896,4]
[328620246,1717620635922,-504.68379012,0.00029896,4]
[328620247,1717620635932,-505.89601905,0.00029896,4]
[328620248,1717620635942,-505.30325916,0.00029896,4]
[328620249,1717620635951,-500.0,0.00029896,4]
[328620250,1717620635960,-637.7,0.00029896,4]
[328620251,1717620635969,-516.57690197,0.00029896,4]
[328620252,1717620635978,-500.0,0.00029896,4]
[328620253,1717620635988,-500.0,0.00029896,4]
[328620254,1717620635998,-465.03,0.00029896,4]
[328620255,1717620636007,-502.14560594,0.00029896,4]
[328620256,1717620636016,-510.79,0.00029896,4]
[328620257,1717620636026,-500.0,0.00029896,4]
[328620258,1717620636035,-182.38,0.00029896,4]
[328620259,1717620636044,-500.0,0.00029896,4]
[328620260,1717620636054,-500.0,0.00029896,4]
[328620261,1717620636063,-189.65223215,0.00029896,4]
[328620262,1717620636073,-507.72381878,0.00029896,4]
[328620263,1717620636082,-505.20846501,0.00029896,4]
[328620264,1717620636091,-500.0,0.00029896,4]
[328620265,1717620636101,-591.71,0.00029896,4]
[328620266,1717620636110,-503.33910214,0.00029896,4]
[328620267,1717620636120,-502.63926764,0.00029896,4]
[328620268,1717620636129,-500.0,0.00029896,4]
[328620269,1717620636138,-500.0,0.00029896,4]
[328620270,1717620636148,-507.26180949,0.00029896,4]
[328620271,1717620636157,-500.0,0.00029896,4]
[328620272,1717620636167,-500.0,0.00029896,4]
[328620273,1717620636177,-289.1,0.00029896,4]
[328620274,1717620636188,-500.0,0.00029896,4]
[328620275,1717620636198,-458.3,0.00029896,4]
[328620276,1717620636207,-1004.35823868,0.00029896,4]
[328620277,1717620636217,-504.83037322,0.00029896,4]
[328620278,1717620636226,-506.93619242,0.00029896,4]
[328620279,1717620636235,-500.0,0.00029896,4]
[328620280,1717620636245,-505.41977869,0.00029896,4]
[328620281,1717620636254,-500.0,0.00029896,4]
[328620282,1717620636263,-482.64320644,0.00029896,4]
[328620283,1717620636273,-500.0,0.00029896,4]
[328620284,1717620636281,-515.6,0.00029896,4]
[328620285,1717620636291,-502.7318163,0.00029896,4]
[328620286,1717620636300,-509.42466594,0.00029896,4]
[328620287,1717620636309,-500.0,0.00029896,4]
[328620288,1717620636318,-510.81907902,0.00029896,4]
[328620289,1717620636327,-522.63427544,0.00029896,4]
[328620290,1717620636336,-500.0,0.00029896,4]
[328620291,1717620636345,-507.63441021,0.00029896,4]
[328620292,1717620636354,-500.0,0.00029896,4]
[328620293,1717620636363,-500.0,0.00029896,2]
[328620294,1717620636372,-500.0,0.00029896,2]
[328620295,1717620636381,-500.0,0.00029896,4]
[328620296,1717620636390,-500.0,0.00029896,4]
[328620297,1717620636399,-500.0,0.00029896,4]
[328620298,1717620636409,-500.0,0.00029896,4]
[328620299,1717620636418,-500.0,0.00029896,4]
[328620300,1717620636427,-500.0,0.00029896,4]
[328620301,1717620636435,-500.0,0.00029896,4]
[328620302,1717620636445,-417.53,0.00029896,4]
[328620303,1717620636453,-503.13630834,0.00029896,4]
[328620304,1717620636462,-500.5626707,0.00029896,4]
[328620305,1717620636471,-500.0,0.00029896,4]
[328620306,1717620636480,-637.03,0.00029896,4]
[328620307,1717620636489,-510.04613711,0.00029896,4]
[328620308,1717620636498,-500.0,0.00029896,4]
[328620309,1717620636509,-504.25890373,0.00029896,4]
[328620310,1717620636519,-500.0,0.00029896,4]
[328620311,1717620636528,-500.0,0.00029896,4]
[328620312,1717620636537,-292.56,0.00029896,4]
[328620313,1717620636546,-500.0,0.00029896,4]
[328620314,1717620636555,-533.77511022,0.00029896,4]
[328620315,1717620636563,-509.66212011,0.00029896,4]
[328620316,1717620636572,-500.0,0.00029896,4]
[328620317,1717620636581,-500.0,0.00029896,4]
[328620318,1717620636590,-389.54,0.00029896,4]
[328620319,1717620636599,-494.84,0.00029896,4]
[328620320,1717620636607,-503.61415215,0.00029896,4]
[328620321,1717620636616,-505.22474214,0.00029896,4]
[328620322,1717620636626,-500.0,0.00029896,4]
[328620323,1717620636635,-500.0,0.00029896,4]
[328620324,1717620636645,-504.75387364,0.00029896,4]
[328620325,1717620636655,-500.0,0.00029896,4]
[328620326,1717620636665,-618.51,0.00029896,4]
[328620327,1717620636674,-505.99081235,0.00029896,4]
[328620328,1717620636684,-508.97674975,0.00029896,4]
[328620329,1717620636694,-509.96167076,0.00029896,4]
[328620330,1717620636703,-500.0,0.00029896,4]
[328620331,1717620636712,-408.18,0.00029896,4]
[328620332,1717620636722,-500.0,0.00029896,4]
[328620333,1717620636731,-500.0,0.00029896,4]
[328620334,1717620636741,-501.89043879,0.00029896,4]
[328620335,1717620636750,-503.97274233,0.00029896,4]
[328620336,1717620636760,-500.0,0.00029896,4]
[328620337,1717620636770,-500.0,0.00029896,4]
[328620338,1717620636778,-504.16554776,0.00029896,4]
[328620339,1717620636787,-502.42977536,0.00029896,4]
[328620340,1717620636797,-500.0,0.00029896,4]
[328620341,1717620636806,-579.79,0.00029896,4]
[328620342,1717620636816,-500.0,0.00029896,4]
[328620343,1717620636825,-504.80340737,0.00029896,4]
[328620344,1717620636839,-500.0,0.00029896,4]
[328620345,1717620636848,-398.09,0.00029896,4]
[328620346,1717620636858,-510.63202465,0.00029896,4]
[328620347,1717620636867,-500.0,0.00029896,4]
[328620348,1717620636878,-549.63482618,0.00029896,4]
[328620349,1717620636888,-503.77041965,0.00029896,4]
[328620350,1717620636897,-500.0,0.00029896,4]
[328620351,1717620636906,-500.0,0.00029896,4]
[328620352,1717620636918,-500.0,0.00029896,4]
[328620353,1717620636928,-500.0,0.00029896,4]
[328620354,1717620636937,-511.77352548,0.00029896,4]
[328620355,1717620636946,-504.82078167,0.00029896,4]
[328620356,1717620636955,-500.0,0.00029896,4]
[328620357,1717620636964,-517.36725385,0.00029896,4]
[328620358,1717620636974,-629.04,0.00029896,4]
[328620359,1717620636983,-503.71046932,0.00029896,4]
[328620360,1717620636992,-500.0,0.00029896,4]
[328620361,1717620637002,-384.21,0.00029896,4]
[328620362,1717620637011,-500.0,0.00029896,4]
[328620363,1717620637021,-500.0,0.00029896,4]
[328620364,1717620637029,-500.0,0.00029896,4]
[328620365,1717620637038,-258.35317451,0.00029896,4]
[328620366,1717620637047,-500.0,0.00029896,4]
[328620367,1717620637056,-424.08,0.00029896,4]
[328620368,1717620637066,-506.11132583,0.00029896,4]
[328620369,1717620637075,-500.0,0.00029896,4]
[328620370,1717620637084,-176.14391114,0.00029896,4]
[328620371,1717620637093,-505.06248761,0.00029896,4]
[328620372,1717620637102,-508.14100577,0.00029896,4]
[328620373,1717620637112,-502.58980479,0.00029896,4]
[328620374,1717620637121,-500.0,0.00029896,4]
[328620375,1717620637131,-500.0,0.00029896,4]
[328620376,1717620637140,-500.0,0.00029896,4]
[328620377,1717620637149,-337.24,0.00029896,4]
[328620378,1717620637158,-500.0,0.00029896,4]
[328620379,1717620637168,-256.1765189,0.00029896,4]
[328620380,1717620637177,-635.21,0.00029896,4]
[328620381,1717620637187,-500.0,0.00029896,4]
[328620382,1717620637196,-511.99088597,0.00029896,4]
[328620383,1717620637205,-500.0,0.00029896,4]
[328620384,1717620637214,-500.0,0.00029896,4]
[328620385,1717620637223,-507.0081286,0.00029896,4]
[328620386,1717620637233,-526.77827758,0.00029896,4]
[328620387,1717620637242,-502.93109661,0.00029896,4]
[328620388,1717620637251,-506.8496257,0.00029896,4]
[328620389,1717620637260,-507.61400144,0.00029896,4]
[328620390,1717620637270,-500.0,0.00029896,4]
[328620391,1717620637280,-500.0,0.00029896,4]
[328620392,1717620637290,-500.0,0.00029896,4]
[328620393,1717620637299,-504.68887736,0.00029896,4]
[328620394,1717620637309,-506.11790306,0.00029896,4]
[328620395,1717620637318,-512.86776094,0.00029896,4]
[328620396,1717620637328,-500.0,0.00029896,4]
[328620397,1717620637337,-644.58811296,0.00029896,4]
[328620398,1717620637347,-500.0,0.00029896,4]
[328620399,1717620637356,-500.0,0.00029896,4]
[328620400,1717620637366,-500.0,0.00029896,4]
[328620401,1717620637375,-500.0,0.00029896,4]
[328620402,1717620637384,-500.0,0.00029896,4]
[328620403,1717620637395,-412.83,0.00029896,4]
[328620405,1717620637404,-500.0,0.00029896,4]
[328620406,1717620637414,-503.73794778,0.00029896,4]
[328620407,1717620637423,-500.0,0.00029896,4]
[328620408,1717620637432,-500.0,0.00029896,4]
[328620409,1717620637442,-500.0,0.00029896,4]
[328620410,1717620637451,-503.66530664,0.00029896,4]
[328620411,1717620637461,-288.84,0.00029896,4]
[328620412,1717620637470,-500.0,0.00029896,4]
[328620413,1717620637480,-422.91,0.00029896,4]
[328620415,1717620637489,-630.59489052,0.00029896,4]
[328620416,1717620637499,-566.24,0.00029896,4]
[328620419,1717620637508,-500.0,0.00029896,4]
[328620421,1717620637518,-269.09005472,0.00029896,4]
[328620423,1717620637527,-500.0,0.00029896,4]
[328620425,1717620637537,-260.3723151,0.00029896,4]
[328620427,1717620637546,-500.0,0.00029896,4]
[328620429,1717620637556,-500.0,0.00029896,4]
[328620431,1717620637566,-500.0,0.00029896,4]
[328620433,1717620637575,-165.6909378,0.00029896,4]
[328620435,1717620637585,-324.59,0.00029896,4]
[328620437,1717620637594,-640.54472763,0.00029896,4]
[328620439,1717620637604,-567.03091312,0.00029896,4]
[328620441,1717620637613,-500.0,0.00029896,4]
[328620443,1717620637623,-500.0,0.00029896,4]
[328620445,1717620637632,-508.02085342,0.00029896,4]
[328620447,1717620637642,-500.0,0.00029896,4]
[328620449,1717620637651,-500.0,0.00029896,4]
[328620451,1717620637660,-500.0,0.00029896,4]
[328620453,1717620637670,-500.0,0.00029896,4]
[328620455,1717620637679,-500.0,0.00029896,4]
[328620457,1717620637688,-500.0,0.00029896,4]
[328620459,1717620637698,-500.0,0.00029896,4]
[328620460,1717620637711,-506.430115,0.00029896,4]
[328620461,1717620637721,-506.77428517,0.00029896,4]
[328620462,1717620637731,-507.83848477,0.00029896,4]
[328620463,1717620637741,-506.73353968,0.00029896,4]
[328620464,1717620637751,-504.02217711,0.00029896,4]
[328620465,1717620637761,-507.28017775,0.00029896,4]
[328620466,1717620637771,-500.0,0.00029896,4]
[328620467,1717620637781,-209.00791599,0.00029896,4]
[328620468,1717620637791,-500.0,0.00029896,4]
[328620469,1717620637800,-439.13,0.00029896,4]
[328620470,1717620637810,-508.0973398,0.00029896,4]
[328620471,1717620637819,-500.0,0.00029896,4]
[328620472,1717620637830,-336.48,0.00029896,4]
[328620473,1717620637844,-500.0,0.00029896,4]
[328620474,1717620637854,-547.6,0.00029896,4]
[328620475,1717620637863,-500.0,0.00029896,4]
[328620476,1717620637872,-500.0,0.00029896,4]
[328620477,1717620637883,-500.0,0.00029896,4]
[328620478,1717620637893,-500.0,0.00029896,4]
[328620479,1717620637903,-500.0,0.00029896,4]
[328620480,1717620637914,-500.0,0.00029896,4]
[328620481,1717620637924,-2799.44,0.00029896,4]
[328620482,1717620637934,-2799.44,0.00029896,4]
[328620483,1717620637943,-500.0,0.00029896,4]
[328620484,1717620637953,-1037.22,0.00029896,4]
[328620485,1717620637963,-1037.22,0.00029896,4]
[328620486,1717620637972,-500.0,0.00029896,4]
[328620487,1717620637982,-500.0,0.00029896,4]
[328620488,1717620637992,-500.0,0.00029896,4]
[328620489,1717620638002,-601.83,0.00029896,4]
[328620490,1717620638012,-500.0,0.00029896,4]
[328620491,1717620638022,-502.76310005,0.00029897,4]
[328620492,1717620638032,-506.01317623,0.00029897,4]
[328620493,1717620638041,-500.0,0.00029897,4]
[328620494,1717620638051,-299.4811198,0.00029897,4]
[328620495,1717620638061,-500.0,0.00029897,4]
[328620496,1717620638071,-500.0,0.00029897,4]
[328620497,1717620638081,-501.53819978,0.00029897,4]
[328620498,1717620638090,-500.0,0.00029897,4]
[328620499,1717620638100,-502.92465326,0.00029897,4]
[328620500,1717620638110,-503.23856757,0.00029897,4]
[328620501,1717620638120,-503.20946197,0.00029897,4]
[328620502,1717620638131,-503.11165293,0.00029897,4]
[328620503,1717620638143,-503.27433667,0.00029897,4]
[328620505,1717620638155,-500.0,0.00029897,4]
[328620507,1717620638166,-500.0,0.00029897,4]
[328620509,1717620638177,-500.0,0.00029897,4]
[328620511,1717620638189,-508.431293,0.00029897,4]
[328620513,1717620638199,-503.50652424,0.00029897,4]
[328620514,1717620638209,-505.0669948,0.00029897,4]
[328620515,1717620638221,-518.57062582,0.00029897,4]
[328620516,1717620638231,-500.0,0.00029897,4]
[328620517,1717620638241,-508.01667734,0.00029897,4]
[328620518,1717620638250,-505.86726983,0.00029897,4]
[328620519,1717620638308,-509.24988019,0.00029897,4]
[328620520,1717620638318,-500.0,0.00029897,4]
[328620521,1717620638327,-500.0,0.00029897,4]
[328620522,1717620638337,-475.4651809,0.00029897,4]
[328620523,1717620638347,-500.0,0.00029897,4]
[328620524,1717620638356,-506.45195551,0.00029897,4]
[328620525,1717620638365,-500.0,0.00029897,4]
[328620526,1717620638375,-582.99,0.00029897,4]
[328620527,1717620638386,-500.0,0.00029897,4]
[328620528,1717620638395,-509.2394367,0.00029897,4]
[328620529,1717620638404,-500.0,0.00029897,4]
[328620530,1717620638414,-551.62573328,0.00029897,4]
[328620531,1717620638423,-509.45168186,0.00029897,4]
[328620532,1717620638432,-508.13415979,0.00029897,4]
[328620533,1717620638441,-503.17940401,0.00029897,4]
[328620534,1717620638451,-507.18636037,0.00029897,4]
[328620535,1717620638460,-500.0,0.00029897,4]
[328620536,1717620638470,-584.76,0.00029897,4]
[328620537,1717620638479,-500.0,0.00029897,4]
[328620538,1717620638488,-500.0,0.00029897,4]
[328620539,1717620638498,-500.0,0.00029897,4]
[328620540,1717620638507,-628.66,0.00029897,4]
[328620541,1717620638516,-500.0,0.00029897,4]